[Event "Final GP Rapid TOP 16 2019"]
[Site "Khanty-Mansijsk"]
[Date "2019.12.01"]
[Round "4.5"]
[White "Bocharov, Dmitry"]
[Black "Voit, Daria"]
[Result "1-0"]
[ECO "A38"]
[WhiteElo "2524"]
[BlackElo "2336"]
[Annotator "ChessBase"]
[PlyCount "75"]
[EventDate "2019.12.01"]
[EventType "tourn"]
[EventCountry "RUS"]
[SourceTitle "playchess.com"]
[Source "ChessBase"]
[SourceQuality "1"]
[TimeControl "900+10"]

1. Nf3 {[%emt 0:00:04]} Nf6 {[%emt 0:00:00]} 2. g3 {[%emt 0:00:03]} g6 {[%emt 0:00:00]} 3. b3 {[%emt 0:00:02]} Bg7 {[%emt 0:00:00]} 4. Bb2 {[%emt 0:00:02]} c5 {[%emt 0:00:18]} 5. Bg2 {[%emt 0:00:11]} O-O {[%emt 0:00:11]} 6. c4 {[%emt 0:00:26]} d6 {[%emt 0:00:50]} 7. O-O {[%emt 0:00:12]} e5 {[%emt 0:00:03]} 8. Nc3 {[%emt 0:00:05]} Nc6 {[%emt 0:00:04]} 9. d3 {[%emt 0:00:02]} h6 {[%emt 0:00:10]} 10. e3 {[%emt 0:00:21]} Bf5 {[%emt 0:00:31]} 11. Rc1 {[%emt 0:00:19]} Re8 {[%emt 0:01:02]} 12. a3 {[%emt 0:02:05]} Qd7 {[%emt 0:00:07]} 13. Re1 {[%emt 0:00:24]} Rad8 {[%emt 0:00:46]} 14. Qc2 {[%emt 0:01:50]} e4 {[%emt 0:07:21]} 15. dxe4 {[%emt 0:04:31]} Nxe4 {[%emt 0:00:03]} 16. Qe2 {[%emt 0:00:05]} Nxc3 {[%emt 0:01:37]} 17. Bxc3 {[%emt 0:00:02]} Bxc3 {[%emt 0:00:17]} 18. Rxc3 {[%emt 0:00:02]} d5 {[%emt 0:00:04]} 19. cxd5 {[%emt 0:01:00]} Qxd5 {[%emt 0:00:02]} 20. Rec1 {[%emt 0:00:44]} Be4 {[%emt 0:01:42]} 21. Rxc5 {[%emt 0:02:29]} Qxb3 {[%emt 0:00:02]} 22. R5c3 {[%emt 0:01:48]} Qd5 {[%emt 0:00:31]} 23. Rc5 {[%emt 0:00:05]} Qb3 {[%emt 0:00:31]} 24. Nd2 {[%emt 0:00:28]} Qa2 {[%emt 0:00:03]} 25. Bxe4 {[%emt 0:00:13]} Rxd2 {[%emt 0:00:05]} 26. Qf3 {[%emt 0:00:01]} Ne5 {[%emt 0:00:37]} 27. Qf4 {[%emt 0:00:18]} Qxa3 {[%emt 0:01:25]} 28. Rc7 {[%emt 0:00:10]} b6 {[%emt 0:00:45]} 29. Kg2 {[%emt 0:00:34]} a5 {[%emt 0:00:13]} 30. R1c6 {[%emt 0:00:30]} Rd6 {[%emt 0:00:16]} 31. Rc8 {[%emt 0:00:15]} Rde6 {[%emt 0:00:21]} 32. Rxe6 {[%emt 0:00:09]} Rxc8 {[%emt 0:00:03]} 33. Rxe5 {[%emt 0:00:07]} a4 {[%emt 0:00:14]} 34. Bd5 {[%emt 0:00:06]} Qf8 {[%emt 0:00:10]} 35. Qxa4 {[%emt 0:00:19]} Rd8 36. Qe4 {[%emt 0:00:15]} Kg7 {[%emt 0:00:14]} 37. Qd4 {[%emt 0:00:05]} Kh7 {[%emt 0:00:08]} 38. Qxb6 {[%emt 0:00:16]} 1-0

[Event "Final GP Rapid TOP 16 2019"]
[Site "Khanty-Mansijsk"]
[Date "2019.12.01"]
[Round "4.7"]
[White "Potapov, Pavel"]
[Black "Murzin, Volodar"]
[Result "1/2-1/2"]
[ECO "B12"]
[WhiteElo "2482"]
[BlackElo "2442"]
[Annotator "ChessBase"]
[PlyCount "100"]
[EventDate "2019.12.01"]
[EventType "tourn"]
[EventCountry "RUS"]
[SourceTitle "playchess.com"]
[Source "ChessBase"]
[SourceQuality "1"]
[TimeControl "900+10"]

1. e4 {[%emt 0:00:00]} c6 {[%emt 0:00:00]} 2. d4 {[%emt 0:00:00]} d5 {[%emt 0:00:00]} 3. e5 {[%emt 0:00:00]} Bf5 {[%emt 0:00:00]} 4. h4 {[%emt 0:00:00]} h5 {[%emt 0:00:00]} 5. Bd3 {[%emt 0:00:01]} Bxd3 {[%emt 0:00:00]} 6. Qxd3 {[%emt 0:00:02]} Qa5+ {[%emt 0:00:00]} 7. Nd2 {[%emt 0:00:04]} e6 {[%emt 0:00:03]} 8. Ngf3 {[%emt 0:00:09]} Nh6 {[%emt 0:00:15]} 9. O-O {[%emt 0:00:41]} Nf5 {[%emt 0:00:06]} 10. c4 {[%emt 0:00:54]} Be7 {[%emt 0:00:05]} 11. g3 {[%emt 0:00:34]} O-O {[%emt 0:01:27]} 12. b3 {[%emt 0:00:05]} Nd7 {[%emt 0:00:10]} 13. a4 {[%emt 0:00:58]} Qa6 {[%emt 0:01:20]} 14. Qc2 {[%emt 0:01:56]} Rfd8 {[%emt 0:02:02]} 15. Bb2 {[%emt 0:01:29]} Rac8 {[%emt 0:04:54]} 16. c5 {[%emt 0:00:09]} b6 {[%emt 0:00:14]} 17. b4 {[%emt 0:00:15]} bxc5 {[%emt 0:01:21]} 18. dxc5 {[%emt 0:04:20]} Qb7 {[%emt 0:01:17]} 19. Ba3 {[%emt 0:00:03]} a5 {[%emt 0:00:31]} 20. bxa5 {[%emt 0:00:30]} Qc7 {[%emt 0:00:29]} 21. Qc3 {[%emt 0:03:22]} d4 {[%emt 0:00:21]} 22. Qd3 {[%emt 0:00:08]} Nxe5 {[%emt 0:00:49]} 23. Nxe5 {[%emt 0:00:03]} Qxe5 {[%emt 0:00:01]} 24. Nc4 {[%emt 0:00:13]} Qc7 {[%emt 0:00:32]} 25. Nb6 {[%emt 0:01:09]} Rb8 {[%emt 0:00:10]} 26. Rab1 {[%emt 0:00:00]} Ne3 {[%emt 0:00:11]} 27. Rfe1 {[%emt 0:00:00]} Ng4 {[%emt 0:00:13]} 28. Kg2 {[%emt 0:00:16]} Bf6 {[%emt 0:01:21]} 29. Nc4 {[%emt 0:00:40]} Ra8 {[%emt 0:00:09]} 30. Rb6 {[%emt 0:00:09]} Qd7 {[%emt 0:00:15]} 31. Nd6 {[%emt 0:00:11]} e5 {[%emt 0:00:34]} 32. Rb7 {[%emt 0:00:10]} Qe6 {[%emt 0:00:10]} 33. a6 {[%emt 0:00:45]} Qd5+ {[%emt 0:00:00]} 34. Kg1 {[%emt 0:00:12]} e4 {[%emt 0:00:23]} 35. Nxe4 {[%emt 0:00:36]} Ne5 {[%emt 0:00:04]} 36. Qd1 {[%emt 0:00:13]} Rxa6 {[%emt 0:00:14]} 37. Bb2 {[%emt 0:00:19]} Raa8 {[%emt 0:00:48]} 38. Qxh5 {[%emt 0:00:10]} Rxa4 {[%emt 0:00:08]} 39. Nxf6+ {[%emt 0:00:06]} gxf6 {[%emt 0:00:00]} 40. Rxe5 {[%emt 0:00:09]} fxe5 {[%emt 0:00:03]} 41. Qg5+ {[%emt 0:00:06]} Kf8 {[%emt 0:00:04]} 42. Qh6+ {[%emt 0:00:10]} Kg8 {[%emt 0:00:01]} 43. Qg5+ {[%emt 0:00:05]} Kf8 {[%emt 0:00:01]} 44. Qf6 {[%emt 0:00:27]} Kg8 {[%emt 0:00:01]} 45. h5 {[%emt 0:00:16]} Rda8 {[%emt 0:00:04]} 46. Qg5+ {[%emt 0:00:09]} Kf8 {[%emt 0:00:04]} 47. Qh6+ {[%emt 0:00:08]} Kg8 {[%emt 0:00:03]} 48. Qg5+ {[%emt 0:00:09]} Kf8 {[%emt 0:00:02]} 49. Qh6+ {[%emt 0:00:10]} Kg8 {[%emt 0:00:03]} 50. Qg5+ {[%emt 0:00:13]} Kf8 {[%emt 0:01:12]} 1/2-1/2

[Event "Final GP Rapid TOP 16 2019"]
[Site "Khanty-Mansijsk"]
[Date "2019.12.01"]
[Round "4.8"]
[White "Shimanov, Aleksandr"]
[Black "Tsydypov, Zhamsaran"]
[Result "0-1"]
[ECO "A22"]
[WhiteElo "2587"]
[BlackElo "2553"]
[Annotator "ChessBase"]
[PlyCount "90"]
[EventDate "2019.12.01"]
[EventType "tourn"]
[EventCountry "RUS"]
[SourceTitle "playchess.com"]
[Source "ChessBase"]
[SourceQuality "1"]
[TimeControl "900+10"]

1. c4 {[%emt 0:00:00]} Nf6 {[%emt 0:00:02]} 2. Nc3 {[%emt 0:00:21]} g6 {[%emt 0:00:08]} 3. e4 {[%emt 0:00:11]} e5 {[%emt 0:00:28]} 4. d4 {[%emt 0:00:17]} exd4 {[%emt 0:00:10]} 5. Qxd4 {[%emt 0:00:09]} Bg7 {[%emt 0:00:24]} 6. Qe5+ {[%emt 0:01:06]} Kf8 {[%emt 0:00:45]} 7. Nf3 {[%emt 0:01:19]} Nc6 {[%emt 0:00:24]} 8. Qf4 {[%emt 0:00:15]} d6 {[%emt 0:03:21]} 9. Be2 {[%emt 0:00:05]} h6 {[%emt 0:00:47]} 10. O-O {[%emt 0:00:28]} Kg8 {[%emt 0:00:21]} 11. Rd1 {[%emt 0:01:14]} Be6 {[%emt 0:00:46]} 12. h3 {[%emt 0:01:16]} Qe7 {[%emt 0:00:17]} 13. Rb1 {[%emt 0:00:43]} Re8 {[%emt 0:00:17]} 14. Re1 {[%emt 0:01:49]} Qd7 {[%emt 0:01:56]} 15. Bf1 {[%emt 0:01:05]} Ne5 {[%emt 0:00:24]} 16. Nxe5 {[%emt 0:00:27]} dxe5 {[%emt 0:00:02]} 17. Qe3 {[%emt 0:00:02]} a6 {[%emt 0:02:02]} 18. Rd1 {[%emt 0:00:07]} Qc8 {[%emt 0:00:03]} 19. b3 {[%emt 0:00:16]} Kh7 {[%emt 0:00:17]} 20. Nd5 {[%emt 0:00:11]} Nxe4 {[%emt 0:01:46]} 21. Qxe4 {[%emt 0:03:49]} Bf5 {[%emt 0:00:02]} 22. Qh4 {[%emt 0:00:10]} Bxb1 {[%emt 0:00:02]} 23. Bxh6 {[%emt 0:00:02]} Bxh6 {[%emt 0:00:54]} 24. Nf6+ {[%emt 0:00:04]} Kg7 {[%emt 0:00:01]} 25. Nxe8+ {[%emt 0:00:04]} Rxe8 {[%emt 0:00:07]} 26. Rxb1 {[%emt 0:00:02]} e4 {[%emt 0:00:43]} 27. Rd1 {[%emt 0:00:22]} Qf5 {[%emt 0:00:40]} 28. Qg3 {[%emt 0:00:55]} e3 {[%emt 0:00:18]} 29. fxe3 {[%emt 0:00:01]} Rxe3 {[%emt 0:00:07]} 30. Qf2 {[%emt 0:00:58]} Qe6 {[%emt 0:00:21]} 31. Kh1 {[%emt 0:00:13]} Qe4 {[%emt 0:00:18]} 32. Qb2+ {[%emt 0:00:34]} Kh7 {[%emt 0:00:02]} 33. Kg1 {[%emt 0:00:05]} Qe7 {[%emt 0:01:15]} 34. Kh1 {[%emt 0:00:13]} Bf4 {[%emt 0:00:04]} 35. Qd4 {[%emt 0:00:36]} Qh4 {[%emt 0:00:18]} 36. Qd5 {[%emt 0:00:43]} Re7 {[%emt 0:00:17]} 37. Qf3 {[%emt 0:00:09]} Bd6 {[%emt 0:00:11]} 38. Kg1 {[%emt 0:00:34]} Qg5 {[%emt 0:00:12]} 39. Bd3 {[%emt 0:00:22]} f5 {[%emt 0:00:09]} 40. Kf1 {[%emt 0:00:05]} Re3 {[%emt 0:00:03]} 41. Qd5 {[%emt 0:00:05]} Qf4+ {[%emt 0:00:11]} 42. Kg1 {[%emt 0:00:01]} Re7 {[%emt 0:00:27]} 43. Bf1 {[%emt 0:00:20]} Qh2+ {[%emt 0:00:04]} 44. Kf2 {[%emt 0:00:01]} Bg3+ {[%emt 0:00:04]} 45. Kf3 {[%emt 0:00:01]} Bh4 {[%emt 0:00:01]} 0-1

[Event "Final GP Rapid TOP 16 2019"]
[Site "Khanty-Mansijsk"]
[Date "2019.12.01"]
[Round "5.1"]
[White "Tsydypov, Zhamsaran"]
[Black "Ponkratov, Pavel"]
[Result "1-0"]
[ECO "E91"]
[WhiteElo "2553"]
[BlackElo "2632"]
[Annotator "ChessBase"]
[PlyCount "141"]
[EventDate "2019.12.01"]
[EventType "tourn"]
[EventCountry "RUS"]
[SourceTitle "playchess.com"]
[Source "ChessBase"]
[SourceQuality "1"]
[TimeControl "900+10"]

1. Nf3 {[%emt 0:00:00]} Nf6 {[%emt 0:00:00]} 2. c4 {[%emt 0:00:00]} g6 {[%emt 0:00:00]} 3. Nc3 {[%emt 0:00:01]} Bg7 {[%emt 0:00:01]} 4. d4 {[%emt 0:00:09]} O-O {[%emt 0:00:15]} 5. e4 {[%emt 0:00:02]} d6 {[%emt 0:00:01]} 6. Be2 {[%emt 0:00:04]} c5 {[%emt 0:00:05]} 7. O-O {[%emt 0:00:10]} Bg4 {[%emt 0:00:02]} 8. dxc5 {[%emt 0:01:27]} dxc5 {[%emt 0:00:04]} 9. Be3 {[%emt 0:00:15]} Nfd7 {[%emt 0:00:28]} 10. Qb3 {[%emt 0:00:25]} Qc8 {[%emt 0:00:39]} 11. Na4 {[%emt 0:03:38]} b6 {[%emt 0:00:32]} 12. h3 {[%emt 0:00:52]} Bxf3 {[%emt 0:00:04]} 13. Bxf3 {[%emt 0:00:02]} Nc6 {[%emt 0:00:01]} 14. Rfd1 {[%emt 0:00:43]} Rb8 {[%emt 0:01:17]} 15. Nc3 {[%emt 0:00:16]} Nde5 {[%emt 0:01:08]} 16. Be2 {[%emt 0:00:02]} Nd4 {[%emt 0:00:02]} 17. Bxd4 {[%emt 0:01:08]} cxd4 {[%emt 0:00:02]} 18. Nd5 {[%emt 0:00:01]} Nc6 {[%emt 0:01:10]} 19. Qa4 {[%emt 0:00:18]} Kh8 {[%emt 0:00:21]} 20. Rac1 {[%emt 0:01:00]} e6 {[%emt 0:00:29]} 21. Nb4 {[%emt 0:03:16]} Nxb4 {[%emt 0:01:43]} 22. Qxb4 {[%emt 0:00:02]} Rd8 {[%emt 0:00:02]} 23. b3 {[%emt 0:00:23]} Rb7 {[%emt 0:02:05]} 24. Qa3 {[%emt 0:01:10]} Rc7 {[%emt 0:01:31]} 25. b4 {[%emt 0:00:04]} f5 {[%emt 0:00:58]} 26. Bd3 {[%emt 0:00:35]} fxe4 {[%emt 0:01:18]} 27. Bxe4 {[%emt 0:00:01]} Rxc4 {[%emt 0:00:02]} 28. Rxc4 {[%emt 0:00:39]} Qxc4 {[%emt 0:00:01]} 29. Qxa7 {[%emt 0:00:39]} Rf8 {[%emt 0:00:12]} 30. Qa3 {[%emt 0:00:31]} Be5 {[%emt 0:00:53]} 31. b5 {[%emt 0:00:26]} Rf7 {[%emt 0:00:26]} 32. Bd3 {[%emt 0:00:14]} Qd5 {[%emt 0:00:25]} 33. Re1 {[%emt 0:00:50]} Bd6 {[%emt 0:01:05]} 34. Qa6 {[%emt 0:00:09]} Qc5 {[%emt 0:00:04]} 35. Qa8+ {[%emt 0:00:25]} Kg7 {[%emt 0:00:04]} 36. Qe4 {[%emt 0:00:26]} Ra7 {[%emt 0:00:35]} 37. g3 {[%emt 0:00:07]} Rxa2 {[%emt 0:01:14]} 38. Qxe6 {[%emt 0:00:17]} Ra7 {[%emt 0:00:01]} 39. Qg4 {[%emt 0:00:09]} Rf7 {[%emt 0:00:33]} 40. Re6 {[%emt 0:00:18]} Rf6 {[%emt 0:01:08]} 41. Rxf6 {[%emt 0:00:17]} Kxf6 {[%emt 0:00:01]} 42. h4 {[%emt 0:00:04]} Qe5 {[%emt 0:00:25]} 43. Qf3+ {[%emt 0:00:04]} Kg7 {[%emt 0:00:04]} 44. Qb7+ {[%emt 0:00:03]} Bc7 {[%emt 0:00:00]} 45. Qc6 {[%emt 0:00:07]} Qd6 {[%emt 0:00:09]} 46. Qf3 {[%emt 0:00:05]} Qe5 {[%emt 0:00:05]} 47. Qg4 {[%emt 0:00:00]} Bd6 {[%emt 0:00:11]} 48. h5 {[%emt 0:00:02]} g5 {[%emt 0:00:29]} 49. Qd7+ {[%emt 0:00:13]} Be7 {[%emt 0:00:04]} 50. h6+ {[%emt 0:00:06]} Kxh6 {[%emt 0:00:17]} 51. Qh3+ {[%emt 0:00:02]} Kg7 {[%emt 0:00:00]} 52. Qxh7+ {[%emt 0:00:01]} Kf8 {[%emt 0:00:01]} 53. Qh6+ {[%emt 0:00:04]} Ke8 {[%emt 0:00:09]} 54. Qc6+ {[%emt 0:00:10]} Kf8 {[%emt 0:00:02]} 55. Qxb6 {[%emt 0:00:03]} Bd6 {[%emt 0:00:02]} 56. Qd8+ {[%emt 0:00:06]} Kg7 {[%emt 0:00:02]} 57. b6 {[%emt 0:00:06]} Qe1+ {[%emt 0:00:16]} 58. Kg2 {[%emt 0:00:01]} Qe5 {[%emt 0:00:00]} 59. Qd7+ {[%emt 0:00:02]} Kf6 {[%emt 0:00:05]} 60. Qd8+ {[%emt 0:00:28]} Kg7 {[%emt 0:00:02]} 61. Qd7+ {[%emt 0:00:05]} Kf6 {[%emt 0:00:01]} 62. Qc6 {[%emt 0:00:03]} Ke7 {[%emt 0:00:06]} 63. Qb7+ {[%emt 0:00:10]} Kf6 {[%emt 0:00:02]} 64. Bc4 {[%emt 0:00:10]} Qe7 {[%emt 0:01:05]} 65. Qf3+ {[%emt 0:00:16]} Kg7 {[%emt 0:00:01]} 66. Qd5 {[%emt 0:00:03]} Be5 {[%emt 0:00:13]} 67. b7 {[%emt 0:00:41]} Qc7 {[%emt 0:00:25]} 68. Qg8+ {[%emt 0:00:10]} Kh6 {[%emt 0:00:08]} 69. Qf8+ {[%emt 0:00:05]} Kg6 {[%emt 0:00:20]} 70. Bd3+ {[%emt 0:00:02]} Kh5 {[%emt 0:00:01]} 71. Qe8+ {[%emt 0:00:01]} 1-0

[Event "Final GP Rapid TOP 16 2019"]
[Site "Khanty-Mansijsk"]
[Date "2019.12.01"]
[Round "5.2"]
[White "Murzin, Volodar"]
[Black "Shimanov, Aleksandr"]
[Result "1/2-1/2"]
[ECO "B04"]
[WhiteElo "2442"]
[BlackElo "2587"]
[Annotator "ChessBase"]
[PlyCount "164"]
[EventDate "2019.12.01"]
[EventType "tourn"]
[EventCountry "RUS"]
[SourceTitle "playchess.com"]
[Source "ChessBase"]
[SourceQuality "1"]
[TimeControl "900+10"]

1. e4 {[%emt 0:00:00]} Nf6 {[%emt 0:00:00]} 2. e5 {[%emt 0:00:06]} Nd5 {[%emt 0:00:00]} 3. d4 {[%emt 0:00:05]} d6 {[%emt 0:00:00]} 4. Nf3 {[%emt 0:00:02]} dxe5 {[%emt 0:00:04]} 5. Nxe5 {[%emt 0:00:25]} c6 {[%emt 0:00:02]} 6. Nd2 {[%emt 0:00:51]} Bf5 {[%emt 0:02:20]} 7. Bd3 {[%emt 0:01:08]} Bxd3 {[%emt 0:00:09]} 8. Nxd3 {[%emt 0:00:02]} e6 {[%emt 0:00:04]} 9. O-O {[%emt 0:00:13]} Be7 {[%emt 0:00:08]} 10. Nf3 {[%emt 0:00:26]} O-O {[%emt 0:00:08]} 11. Re1 {[%emt 0:00:02]} Nd7 {[%emt 0:00:17]} 12. c4 {[%emt 0:00:44]} N5f6 {[%emt 0:00:07]} 13. Qc2 {[%emt 0:00:57]} Rc8 {[%emt 0:00:24]} 14. Be3 {[%emt 0:00:04]} Qc7 {[%emt 0:01:03]} 15. Rad1 {[%emt 0:00:25]} Rfe8 {[%emt 0:00:48]} 16. b3 {[%emt 0:00:27]} b5 {[%emt 0:00:23]} 17. Bf4 {[%emt 0:00:53]} Qb7 {[%emt 0:00:09]} 18. c5 {[%emt 0:00:53]} Nd5 {[%emt 0:00:19]} 19. Bg3 {[%emt 0:00:07]} Rcd8 {[%emt 0:00:29]} 20. h3 {[%emt 0:01:30]} Nf8 {[%emt 0:01:54]} 21. Nde5 {[%emt 0:00:29]} f6 {[%emt 0:00:38]} 22. Nd3 {[%emt 0:00:24]} Ra8 {[%emt 0:02:31]} 23. a3 {[%emt 0:00:37]} Bd8 {[%emt 0:00:47]} 24. Re4 {[%emt 0:04:22]} Bc7 {[%emt 0:00:15]} 25. Bxc7 {[%emt 0:00:08]} Qxc7 {[%emt 0:00:01]} 26. Rde1 {[%emt 0:00:01]} a5 {[%emt 0:00:20]} 27. g3 {[%emt 0:00:12]} Rad8 {[%emt 0:00:24]} 28. h4 {[%emt 0:00:22]} Qf7 {[%emt 0:00:36]} 29. Qd2 {[%emt 0:00:43]} a4 {[%emt 0:00:12]} 30. b4 {[%emt 0:00:26]} Re7 {[%emt 0:00:38]} 31. Kg2 {[%emt 0:00:06]} Nc7 {[%emt 0:00:26]} 32. Qc2 {[%emt 0:01:38]} Red7 {[%emt 0:01:27]} 33. Nf4 {[%emt 0:00:15]} Re8 {[%emt 0:00:23]} 34. R4e2 {[%emt 0:00:25]} Ng6 {[%emt 0:00:14]} 35. Nd3 {[%emt 0:00:09]} Red8 {[%emt 0:00:19]} 36. Re4 {[%emt 0:00:10]} e5 {[%emt 0:00:28]} 37. h5 {[%emt 0:00:03]} Nf8 {[%emt 0:00:03]} 38. h6 {[%emt 0:00:02]} Nfe6 {[%emt 0:00:36]} 39. Ndxe5 {[%emt 0:00:28]} fxe5 {[%emt 0:00:02]} 40. Nxe5 {[%emt 0:00:02]} Qf5 {[%emt 0:00:28]} 41. Nxd7 {[%emt 0:00:14]} Rxd7 {[%emt 0:00:02]} 42. Qe2 {[%emt 0:00:09]} Re7 {[%emt 0:02:00]} 43. Re5 {[%emt 0:00:53]} Qg6 {[%emt 0:00:02]} 44. Qe4 {[%emt 0:00:19]} Qxe4+ {[%emt 0:00:25]} 45. R1xe4 {[%emt 0:00:02]} gxh6 {[%emt 0:00:11]} 46. f4 {[%emt 0:00:08]} Re8 {[%emt 0:00:01]} 47. f5 {[%emt 0:00:11]} Ng7 {[%emt 0:00:01]} 48. Rxe8+ {[%emt 0:00:10]} Ncxe8 {[%emt 0:00:14]} 49. d5 {[%emt 0:00:15]} cxd5 {[%emt 0:00:03]} 50. Re5 {[%emt 0:00:01]} Nc7 {[%emt 0:00:26]} 51. Re7 {[%emt 0:00:04]} Nge8 {[%emt 0:00:05]} 52. f6 {[%emt 0:00:05]} Kf8 {[%emt 0:00:02]} 53. Rxh7 {[%emt 0:00:23]} Ne6 {[%emt 0:00:04]} 54. Rxh6 {[%emt 0:00:01]} Kf7 {[%emt 0:00:04]} 55. Rh5 {[%emt 0:00:04]} Nxf6 {[%emt 0:00:04]} 56. Rf5 {[%emt 0:00:01]} Nd4 {[%emt 0:00:08]} 57. Rf4 {[%emt 0:00:03]} Nc6 {[%emt 0:00:38]} 58. Kf2 {[%emt 0:00:32]} d4 {[%emt 0:00:15]} 59. Ke2 {[%emt 0:00:04]} Ke6 {[%emt 0:00:08]} 60. g4 {[%emt 0:00:01]} d3+ {[%emt 0:00:12]} 61. Kd2 {[%emt 0:00:21]} Ne5 {[%emt 0:00:03]} 62. g5 {[%emt 0:00:01]} Nd5 {[%emt 0:00:01]} 63. Rf8 {[%emt 0:00:06]} Ne7 {[%emt 0:00:14]} 64. Rf6+ {[%emt 0:00:06]} Kd5 65. Rd6+ {[%emt 0:00:10]} Ke4 66. Re6 {[%emt 0:00:06]} Nf5 {[%emt 0:00:50]} 67. g6 {[%emt 0:00:07]} Kd4 {[%emt 0:00:06]} 68. Rxe5 {[%emt 0:00:24]} Kxe5 {[%emt 0:00:01]} 69. Kxd3 {[%emt 0:00:10]} Kd5 {[%emt 0:00:10]} 70. Ke2 {[%emt 0:00:00]} Ke4 {[%emt 0:00:12]} 71. Kd2 {[%emt 0:00:06]} Ke5 {[%emt 0:00:04]} 72. Kd3 {[%emt 0:00:03]} Kd5 {[%emt 0:00:01]} 73. Ke2 {[%emt 0:00:07]} Ke5 {[%emt 0:00:20]} 74. Kd3 {[%emt 0:00:04]} Ng7 {[%emt 0:00:10]} 75. Ke3 {[%emt 0:00:06]} Ne6 {[%emt 0:00:04]} 76. Kf3 {[%emt 0:00:08]} Kf5 {[%emt 0:00:10]} 77. Ke3 {[%emt 0:00:39]} Kxg6 {[%emt 0:00:13]} 78. Ke4 {[%emt 0:00:00]} Kf6 {[%emt 0:00:02]} 79. Kd5 {[%emt 0:00:03]} Ke7 {[%emt 0:00:02]} 80. Kc6 {[%emt 0:00:09]} Nd4+ {[%emt 0:00:01]} 81. Kb6 {[%emt 0:00:04]} Kd7 {[%emt 0:00:51]} 82. c6+ {[%emt 0:00:08]} Nxc6 {[%emt 0:00:10]} 1/2-1/2

[Event "Final GP Rapid TOP 16 2019"]
[Site "Khanty-Mansijsk"]
[Date "2019.12.01"]
[Round "5.3"]
[White "Maltsevskaya, Aleksandra"]
[Black "Potapov, Pavel"]
[Result "0-1"]
[ECO "B22"]
[WhiteElo "2318"]
[BlackElo "2482"]
[Annotator "ChessBase"]
[PlyCount "48"]
[EventDate "2019.12.01"]
[EventType "tourn"]
[EventCountry "RUS"]
[SourceTitle "playchess.com"]
[Source "ChessBase"]
[SourceQuality "1"]
[TimeControl "900+10"]

1. e4 {[%emt 0:00:00]} c5 {[%emt 0:00:00]} 2. d4 {[%emt 0:00:11]} cxd4 {[%emt 0:00:00]} 3. c3 {[%emt 0:00:01]} Nf6 {[%emt 0:00:00]} 4. e5 {[%emt 0:00:13]} Nd5 {[%emt 0:00:00]} 5. Nf3 {[%emt 0:00:24]} Nc6 {[%emt 0:00:01]} 6. c4 {[%emt 0:00:36]} Nc7 {[%emt 0:00:21]} 7. Nxd4 {[%emt 0:01:46]} Nxe5 {[%emt 0:00:22]} 8. Nc3 {[%emt 0:00:18]} g6 {[%emt 0:00:17]} 9. h4 {[%emt 0:03:47]} h5 {[%emt 0:00:49]} 10. Bg5 {[%emt 0:00:44]} Bg7 {[%emt 0:00:21]} 11. Be2 {[%emt 0:01:28]} d6 {[%emt 0:00:51]} 12. Qd2 {[%emt 0:02:02]} Ne6 {[%emt 0:03:36]} 13. Nc2 {[%emt 0:03:39]} Nxg5 {[%emt 0:00:47]} 14. hxg5 {[%emt 0:00:01]} Be6 {[%emt 0:00:17]} 15. Ne3 {[%emt 0:00:04]} Rc8 {[%emt 0:00:41]} 16. Ncd5 {[%emt 0:01:40]} Nc6 {[%emt 0:02:04]} 17. O-O-O {[%emt 0:00:30]} Nd4 {[%emt 0:00:35]} 18. Bd3 {[%emt 0:00:20]} b5 {[%emt 0:00:23]} 19. Kb1 {[%emt 0:00:14]} bxc4 {[%emt 0:00:11]} 20. Bxc4 {[%emt 0:00:08]} Rxc4 {[%emt 0:00:44]} 21. Nxc4 {[%emt 0:00:02]} Bxd5 {[%emt 0:00:09]} 22. Ne3 {[%emt 0:00:20]} Be4+ {[%emt 0:00:06]} 23. Ka1 {[%emt 0:00:01]} Qb6 {[%emt 0:00:16]} 24. Rc1 {[%emt 0:00:17]} Nb3+ {[%emt 0:00:04]} 0-1

[Event "Final GP Rapid TOP 16 2019"]
[Site "Khanty-Mansijsk"]
[Date "2019.12.01"]
[Round "5.5"]
[White "Nesterov, Arseniy"]
[Black "Bocharov, Dmitry"]
[Result "1-0"]
[ECO "D45"]
[WhiteElo "2482"]
[BlackElo "2524"]
[Annotator "ChessBase"]
[PlyCount "121"]
[EventDate "2019.12.01"]
[EventType "tourn"]
[EventCountry "RUS"]
[SourceTitle "playchess.com"]
[Source "ChessBase"]
[SourceQuality "1"]
[TimeControl "900+10"]

1. d4 {[%emt 0:00:00]} Nf6 {[%emt 0:00:00]} 2. c4 {[%emt 0:00:00]} e6 {[%emt 0:00:00]} 3. Nf3 {[%emt 0:00:00]} d5 {[%emt 0:00:00]} 4. Nc3 {[%emt 0:00:02]} c6 {[%emt 0:00:00]} 5. e3 {[%emt 0:00:12]} Nbd7 {[%emt 0:00:01]} 6. Qc2 {[%emt 0:00:06]} Bd6 {[%emt 0:00:21]} 7. b3 {[%emt 0:00:02]} O-O {[%emt 0:00:17]} 8. Be2 {[%emt 0:00:03]} b6 {[%emt 0:00:08]} 9. O-O {[%emt 0:00:10]} Bb7 {[%emt 0:00:02]} 10. Bb2 {[%emt 0:00:05]} Qe7 {[%emt 0:01:29]} 11. Rfd1 {[%emt 0:00:07]} Rad8 {[%emt 0:00:55]} 12. Rac1 {[%emt 0:00:26]} Rfe8 {[%emt 0:00:19]} 13. Bf1 {[%emt 0:00:23]} e5 {[%emt 0:00:13]} 14. cxd5 {[%emt 0:00:10]} e4 {[%emt 0:00:02]} 15. Nxe4 {[%emt 0:02:46]} Nxe4 {[%emt 0:00:27]} 16. dxc6 {[%emt 0:00:02]} Bxc6 {[%emt 0:03:16]} 17. Qxc6 {[%emt 0:00:03]} Nxf2 {[%emt 0:00:02]} 18. Re1 {[%emt 0:01:16]} Ne4 {[%emt 0:00:23]} 19. Ne5 {[%emt 0:04:48]} Bxe5 {[%emt 0:01:23]} 20. dxe5 {[%emt 0:00:02]} Nd2 {[%emt 0:04:01]} 21. Bb5 {[%emt 0:03:13]} Nxe5 {[%emt 0:01:13]} 22. Qc7 {[%emt 0:01:30]} Nd7 {[%emt 0:01:01]} 23. Rcd1 {[%emt 0:00:53]} Nf6 {[%emt 0:00:21]} 24. Qc2 {[%emt 0:01:25]} Nde4 {[%emt 0:00:40]} 25. Bxe8 {[%emt 0:00:18]} Rxe8 {[%emt 0:00:01]} 26. Bxf6 {[%emt 0:00:26]} Nxf6 {[%emt 0:00:02]} 27. e4 {[%emt 0:00:36]} Ng4 {[%emt 0:00:05]} 28. h3 {[%emt 0:00:09]} Ne5 {[%emt 0:00:02]} 29. Qd2 {[%emt 0:00:23]} h6 {[%emt 0:00:18]} 30. Rf1 {[%emt 0:00:06]} Kh7 {[%emt 0:00:31]} 31. Rf5 {[%emt 0:00:07]} f6 {[%emt 0:00:11]} 32. Qd6 {[%emt 0:00:07]} Qf7 {[%emt 0:00:04]} 33. Rdf1 {[%emt 0:00:08]} Qb7 {[%emt 0:00:24]} 34. Qd5 {[%emt 0:00:03]} Qc7 {[%emt 0:00:02]} 35. R5f2 {[%emt 0:00:13]} Rd8 {[%emt 0:00:18]} 36. Qe6 {[%emt 0:00:13]} Rd3 {[%emt 0:00:44]} 37. Qf5+ {[%emt 0:00:07]} Kh8 {[%emt 0:00:02]} 38. Qf4 {[%emt 0:00:19]} Rd8 {[%emt 0:01:04]} 39. Qc1 {[%emt 0:00:16]} Qd7 {[%emt 0:00:07]} 40. Qc3 {[%emt 0:00:06]} Re8 {[%emt 0:00:38]} 41. Rd2 {[%emt 0:00:03]} Qe7 {[%emt 0:00:02]} 42. Rd4 {[%emt 0:00:16]} Nf7 {[%emt 0:00:10]} 43. Qd2 {[%emt 0:00:06]} Ne5 {[%emt 0:00:09]} 44. Rd1 {[%emt 0:00:08]} Nc6 {[%emt 0:00:03]} 45. Rc4 {[%emt 0:00:10]} Ne5 {[%emt 0:00:02]} 46. Ra4 {[%emt 0:00:14]} Qf7 {[%emt 0:00:20]} 47. Rd4 {[%emt 0:00:10]} Qg6 {[%emt 0:00:03]} 48. Kh1 {[%emt 0:00:03]} Kh7 {[%emt 0:00:05]} 49. Qf2 {[%emt 0:00:08]} Nc6 {[%emt 0:00:12]} 50. Rc4 Ne5 {[%emt 0:00:02]} 51. Ra4 {[%emt 0:00:11]} Qf7 {[%emt 0:00:02]} 52. Qf5+ {[%emt 0:00:07]} Kg8 {[%emt 0:00:08]} 53. Rad4 {[%emt 0:00:22]} Qc7 {[%emt 0:00:03]} 54. Qf4 {[%emt 0:00:14]} Qe7 {[%emt 0:00:13]} 55. Qd2 {[%emt 0:00:13]} Nc6 {[%emt 0:00:06]} 56. Rd7 {[%emt 0:00:04]} Qxe4 {[%emt 0:00:16]} 57. Qd5+ {[%emt 0:00:00]} Qxd5 {[%emt 0:00:06]} 58. R1xd5 {[%emt 0:00:10]} Re1+ {[%emt 0:00:51]} 59. Kh2 {[%emt 0:00:02]} a5 {[%emt 0:00:09]} 60. Rb7 {[%emt 0:00:25]} Re2 {[%emt 0:00:09]} 61. Rdd7 {[%emt 0:00:04]} 1-0